{"text_format":"1","workbook":"xlsx","n_sheets":5,"sheets":["Game","Panico","Match","DATA","Manutenção"],"not_rendered":{"charts":1,"images":66,"macros":1,"external_links":0,"defined_names":4,"comments":0,"pivot_tables":0},"unopened":[],"bounds":{"document_bytes":16777216,"sheet_cells":100000,"rows_first":2000,"rows_last":500,"rows_between":2000,"halvings":0,"cell_chars":16384,"cell_head_chars":4096},"cells_cut":0,"cells_raw":0,"read":"whole","date_system":"1900"}

{"sheet":"Game","index":0,"n_rows":19,"n_cols":6,"rows_kept":19,"cut":false,"hidden":true,"merged":[[16,1,16,2],[16,4,16,5],[18,4,18,5],[18,1,18,2]]}
[]
[]
[]
[]
[]
[]
[]
[]
[]
[]
[]
[]
[]
[]
[]
[]
[null,"Scarlett Johansson",null,"Nome","Anne Hathaway"]
[null,{"$f":"VLOOKUP($B$17,DATA!$J$1:$M$64,2,FALSE)","v":"Americana"},{"$f":"VLOOKUP($B$17,DATA!$J$1:$M$64,3,FALSE)","v":27},"Nacionalidade",{"$f":"VLOOKUP($E$17,DATA!$J$1:$M$64,2,FALSE)","v":"Americana"},{"$f":"VLOOKUP($E$17,DATA!$J$1:$M$64,3,FALSE)","v":29}]
[null,{"$f":"VLOOKUP($B$17,DATA!$J$1:$M$64,4,FALSE)","v":"Atriz e modelo, interpretou a Viúva Negra em \"Homem de Ferro 2\" e \"Os Vingadores\""},null,"Famosa quem?",{"$f":"VLOOKUP($E$17,DATA!$J$1:$M$64,4,FALSE)","v":"Atriz, intrepretou Andrea em \"O diabo veste Prada\""}]

{"sheet":"Panico","index":1,"n_rows":26,"n_cols":4,"rows_kept":26,"cut":false,"hidden":true,"merged":[[0,0,0,12]]}
["Resultados último Biênio"]
["Período","Volume","Valor","Taxa"]
[{"$f":"DATE(YEAR(A4-25),MONTH(A4-25),1)","v":"2010-08-01"},28.547239642961685,57.09447928592337,0]
["2010-09-01",112.12047316967914,224.24094633935829,0.83573233526717461]
["2010-10-01",205.9796390618622,411.9592781237244,0.93859165892183061]
["2010-11-01",217.98056619170151,435.96113238340303,0.12000927129839312]
["2010-12-01",300.2186083435812,600.43721668716239,0.82238042151879687]
["2011-01-01",381.16328195398415,762.32656390796831,0.80944673610402962]
["2011-02-01",459.93550972147227,919.87101944294454,0.7877222776748809]
["2011-03-01",503.11711422200381,1006.2342284440076,0.43181604500531545]
["2011-04-01",510.78761394230918,1021.5752278846184,7.6704997203053793E-2]
["2011-05-01",563.89806706143929,1127.7961341228786,0.53110453119130097]
["2011-06-01",582.79085003811781,1165.5817000762356,0.18892782976678557]
["2011-07-01",649.94516399822714,1299.8903279964543,0.67154313960109335]
["2011-08-01",693.59526623200895,1387.1905324640179,0.43650102233781851]
["2011-09-01",702.38200420356929,1404.7640084071386,8.78673797156031E-2]
["2011-10-01",718.06832289737383,1436.1366457947477,0.15686318693804518]
["2011-11-01",794.53691475154994,1589.0738295030999,0.76468591854176071]
["2011-12-01",813.71021461474504,1627.4204292294901,0.19173299863195137]
["2012-01-01",835.8208710541835,1671.641742108367,0.22110656439438459]
["2012-02-01",857.43856930687093,1714.8771386137419,0.21617698252687401]
["2012-03-01",920.89447858273411,1841.7889571654682,0.6345590927586322]
["2012-04-01",1016.2251295560847,2032.4502591121693,0.95330650973350561]
["2012-05-01",1075.7265197853619,2151.4530395707238,0.59501390229277273]
[{"$f":"DATE(YEAR(A26-25),MONTH(A26-25),1)","v":"2012-06-01"},1160.0126615174638,2320.0253230349276,0.8428614173210196]
[{"$f":"DATE(YEAR(TODAY()-35),MONTH(TODAY()-35),1)","v":"2012-07-01"},1229.9022532425656,2459.8045064851312,0.69889591725101896]

{"sheet":"Match","index":2,"n_rows":64,"n_cols":14,"rows_kept":64,"cut":false,"hidden":false,"merged":[]}
[]
[null,{"$f":"DATA!C1","v":"Bérénice Marlohe"},null,null,null,null,null,null,null,null,null,null,null,{"$f":"DATA!C33","v":"Dani Bolina"}]
[]
[null,{"$f":"DATA!C2","v":"Megan Fox"},null,null,null,null,null,null,null,null,null,null,null,{"$f":"DATA!C34","v":"Renata Fan"}]
[]
[null,{"$f":"DATA!C3","v":"Sandy"},null,null,null,null,null,null,null,null,null,null,null,{"$f":"DATA!C35","v":"Aryane Steinkopf"}]
[]
[null,{"$f":"DATA!C4","v":"Emma Stone"},null,null,null,null,null,null,null,null,null,null,null,{"$f":"DATA!C36","v":"Selena Gomez"}]
[]
[null,{"$f":"DATA!C5","v":"Jessica Gomes"},null,null,null,null,null,null,null,null,null,null,null,{"$f":"DATA!C37","v":"Claudia Leitte"}]
[]
[null,{"$f":"DATA!C6","v":"Jessica Alba"},null,null,null,null,null,null,null,null,null,null,null,{"$f":"DATA!C38","v":"Kate Upton"}]
[]
[null,{"$f":"DATA!C7","v":"Babi Xavier"},null,null,null,null,null,null,null,null,null,null,null,{"$f":"DATA!C39","v":"Bar Refaeli"}]
[]
[null,{"$f":"DATA!C8","v":"Kristen Stewart"},null,null,null,null,null,null,null,null,null,null,null,{"$f":"DATA!C40","v":"Sofia Vergara"}]
[]
[null,{"$f":"DATA!C9","v":"Angelina Jolie"},null,null,null,null,null,null,null,null,null,null,null,{"$f":"DATA!C41","v":"Rihanna"}]
[]
[null,{"$f":"DATA!C10","v":"Daisy Lowe"},null,null,null,null,null,null,null,null,null,null,null,{"$f":"DATA!C42","v":"Candice Swanepoel"}]
[]
[null,{"$f":"DATA!C11","v":"Grazi Massafera"},null,null,null,null,null,null,null,null,null,null,null,{"$f":"DATA!C43","v":"Beyonce"}]
[]
[null,{"$f":"DATA!C12","v":"Rosie Huntington-Whiteley"},null,null,null,null,null,null,null,null,null,null,null,{"$f":"DATA!C44","v":"Paola Oliveira"}]
[]
[null,{"$f":"DATA!C13","v":"Katrina Bowden"},null,null,null,null,null,null,null,null,null,null,null,{"$f":"DATA!C45","v":"Paula Fernandes"}]
[]
[null,{"$f":"DATA!C14","v":"Maria Pinna"},null,null,null,null,null,null,null,null,null,null,null,{"$f":"DATA!C46","v":"Kate Beckinsale"}]
[]
[null,{"$f":"DATA!C15","v":"Adriana Lima"},null,null,null,null,null,null,null,null,null,null,null,{"$f":"DATA!C47","v":"Talula Pascoli"}]
[]
[null,{"$f":"DATA!C16","v":"Babi Rossi"},null,null,null,null,null,null,null,null,null,null,null,{"$f":"DATA!C48","v":"Amber Heard"}]
[]
[null,{"$f":"DATA!C17","v":"Adriana Birolli"},null,null,null,null,null,null,null,null,null,null,null,{"$f":"DATA!C49","v":"Isis Valverde"}]
[]
[null,{"$f":"DATA!C18","v":"Adriana D'Santana"},null,null,null,null,null,null,null,null,null,null,null,{"$f":"DATA!C50","v":"Cleo Pires"}]
[]
[null,{"$f":"DATA!C19","v":"Olivia Munn"},null,null,null,null,null,null,null,null,null,null,null,{"$f":"DATA!C51","v":"Scarlett Johansson"}]
[]
[null,{"$f":"DATA!C20","v":"Ellen Roche"},null,null,null,null,null,null,null,null,null,null,null,{"$f":"DATA!C52","v":"Camila Pitanga"}]
[]
[null,{"$f":"DATA!C21","v":"Alinne Moraes"},null,null,null,null,null,null,null,null,null,null,null,{"$f":"DATA!C53","v":"Katy Perry"}]
[]
[null,{"$f":"DATA!C22","v":"Mel Fronckowiak"},null,null,null,null,null,null,null,null,null,null,null,{"$f":"DATA!C54","v":"Isabeli Fontana"}]
[]
[null,{"$f":"DATA!C23","v":"Juju Salimeni"},null,null,null,null,null,null,null,null,null,null,null,{"$f":"DATA!C55","v":"Ana Hickmann"}]
[]
[null,{"$f":"DATA!C24","v":"Ivete Sangalo"},null,null,null,null,null,null,null,null,null,null,null,{"$f":"DATA!C56","v":"Mila Kunis"}]
[]
[null,{"$f":"DATA!C25","v":"Nicole Bahls"},null,null,null,null,null,null,null,null,null,null,null,{"$f":"DATA!C57","v":"Blake Lively"}]
[]
[null,{"$f":"DATA!C26","v":"Alessandra Ambrósio"},null,null,null,null,null,null,null,null,null,null,null,{"$f":"DATA!C58","v":"Olivia Wilde"}]
[]
[null,{"$f":"DATA!C27","v":"Adriane Galisteu"},null,null,null,null,null,null,null,null,null,null,null,{"$f":"DATA!C59","v":"Anne Hathaway"}]
[]
[null,{"$f":"DATA!C28","v":"Lea Michele"},null,null,null,null,null,null,null,null,null,null,null,{"$f":"DATA!C60","v":"Gisele Bündchen"}]
[]
[null,{"$f":"DATA!C29","v":"Kate Middleton"},null,null,null,null,null,null,null,null,null,null,null,{"$f":"DATA!C61","v":"Emma Watson"}]
[]
[null,{"$f":"DATA!C30","v":"Jennifer Lawrence"},null,null,null,null,null,null,null,null,null,null,null,{"$f":"DATA!C62","v":"Bárbara Evans"}]
[]
[null,{"$f":"DATA!C31","v":"Zooey Deschanel"},null,null,null,null,null,null,null,null,null,null,null,{"$f":"DATA!C63","v":"Miranda Kerr"}]
[]
[null,{"$f":"DATA!C32","v":"Deborah Secco"},null,null,null,null,null,null,null,null,null,null,null,{"$f":"DATA!C64","v":"Sabrina Sato"}]

{"sheet":"DATA","index":3,"n_rows":64,"n_cols":14,"rows_kept":64,"cut":false,"hidden":true,"merged":[]}
[null,"GAME","Bérénice Marlohe",0.97907793521881104,null,null,"Scarlett Johansson",null,null,"Adriana Birolli","Brasileira",{"$f":"ROUNDDOWN((TODAY()-N1)/365,0)","v":24},"Atriz","1987-11-25"]
[26,"WINNER ROW","Megan Fox",0.93854516744613647,null,null,"Anne Hathaway",null,null,"Adriana D'Santana","Brasileira",{"$f":"ROUNDDOWN((TODAY()-N2)/365,0)","v":21},"Ex-BBB","1991-02-06"]
[8,"WINNER COLUMN","Sandy",0.91937708854675293,null,null,"Ana Hickmann",null,null,"Adriana Lima","Brasileira",31,"Modelo","1981-06-12"]
[null,null,"Emma Stone",0.91616398096084595,null,null,"Jennifer Lawrence",null,null,"Adriane Galisteu","Brasileira",39,"Apresentadora de TV","1973-04-17"]
[null,null,"Jessica Gomes",0.91371756792068481,null,null,"Alessandra Ambrósio",null,null,"Alessandra Ambrósio","Brasileira",31,"Modelo","1981-04-11"]
[null,null,"Jessica Alba",0.90572983026504517,null,null,"Kate Middleton",null,null,"Alinne Moraes","Brasileira",29,"Atriz","1982-12-22"]
[null,null,"Babi Xavier",0.83481717109680176,null,null,"Adriana Lima",null,null,"Amber Heard","Americana",26,"Atriz, interpretou Chenault em \"Diário de um jornalista Bêbado\"","1986-04-22"]
[null,null,"Kristen Stewart",0.83273017406463623,null,null,"Bar Refaeli",null,null,"Ana Hickmann","Brasileira",31,"Modelo, apresentadora de TV","1981-03-01"]
[null,null,"Angelina Jolie",0.78521221876144409,null,null,"Amber Heard",null,null,"Angelina Jolie","Americana",37,"Atriz, vencedora de um Oscar","1975-07-04"]
[null,null,"Daisy Lowe",0.78399527072906494,null,null,"Rosie Huntington-Whiteley",null,null,"Anne Hathaway","Americana",29,"Atriz, intrepretou Andrea em \"O diabo veste Prada\"","1982-11-12"]
[null,null,"Grazi Massafera",0.75368809700012207,null,null,"Blake Lively",null,null,"Aryane Steinkopf","Brasileira",24,"Modelo, ex-Panicat","1987-12-14"]
[null,null,"Rosie Huntington-Whiteley",0.69448530673980713,null,null,"Mel Fronckowiak",null,null,"Babi Rossi","Brasileira",22,"Modelo, Panicat","1990-02-09"]
[null,null,"Katrina Bowden",0.67794770002365112,null,null,"Babi Xavier",null,null,"Babi Xavier","Brasileira",38,"Apresentadora de TV","1974-07-06"]
[null,null,"Maria Pinna",0.65705496072769165,null,null,"Megan Fox",null,null,"Bar Refaeli","Israelense",27,"Modelo, ex-namorada de Leonardo di Caprio","1985-06-04"]
[null,null,"Adriana Lima",0.65449941158294678,null,null,"Ellen Roche",null,null,"Bárbara Evans","Brasileira",21,"Modelo, filha de Monique Evans","1991-05-22"]
[null,null,"Babi Rossi",0.63317888975143433,null,null,"Kate Beckinsale",null,null,"Bérénice Marlohe","Francesa",33,"Atriz, bondgirl em \"007- Operação Skyfall\"","1979-05-19"]
[null,null,"Adriana Birolli",0.63174241781234741,null,null,"Kate Upton",null,null,"Beyonce","Americana",30,"Cantora","1981-09-04"]
[null,null,"Adriana D'Santana",0.62875187397003174,null,null,"Cleo Pires",null,null,"Blake Lively","Americana",25,"Atriz, interpreta Serena van der Woodsen no seriado \"Gossip\"","1987-08-25"]
[null,null,"Olivia Munn",0.62764203548431396,null,null,"Paula Fernandes",null,null,"Camila Pitanga","Brasileira",35,"Atriz","1977-06-14"]
[null,null,"Ellen Roche",0.59609454870223999,null,null,"Katy Perry",null,null,"Candice Swanepoel","Sul-africana",23,"Modelo","1988-10-20"]
[null,null,"Alinne Moraes",0.5833590030670166,null,null,"Sofia Vergara",null,null,"Claudia Leitte","Brasileira",32,"Cantora de axé","1980-07-10"]
[null,null,"Mel Fronckowiak",0.56104010343551636,null,null,"Isabeli Fontana",null,null,"Cleo Pires","Brasileira",29,"Atriz, filha de Glória Pires e Fábio Júnior","1982-10-02"]
[null,null,"Juju Salimeni",0.54401397705078125,null,null,"Isis Valverde",null,null,"Daisy Lowe","Inglesa",23,"Modelo","1989-01-27"]
[null,null,"Ivete Sangalo",0.54336059093475342,null,null,"Angelina Jolie",null,null,"Dani Bolina","Brasileira",28,"Modelo, ex-Panicat","1984-02-10"]
[null,null,"Nicole Bahls",0.54207020998001099,null,null,"Bérénice Marlohe",null,null,"Deborah Secco","Brasileira",32,"Atriz","1979-11-26"]
[null,null,"Alessandra Ambrósio",0.53679406642913818,null,null,"Beyonce",null,null,"Ellen Roche","Brasileira",33,"Modelo e atriz","1979-07-16"]
[null,null,"Adriane Galisteu",0.51373749971389771,null,null,"Candice Swanepoel",null,null,"Emma Stone","Americana",23,"Atriz, interpreta Gwen Stacy em \"O espetacular Homem-Aranha\"","1988-11-06"]
[null,null,"Lea Michele",0.50608736276626587,null,null,"Daisy Lowe",null,null,"Emma Watson","Britânica",22,"Atriz, intepretou Hermione nos filmes Harry Potter","1990-04-15"]
[null,null,"Kate Middleton",0.50245392322540283,null,null,"Emma Stone",null,null,"Gisele Bündchen","Brasileira",32,"Modelo","1980-07-20"]
[null,null,"Jennifer Lawrence",0.48989474773406982,null,null,"Emma Watson",null,null,"Grazi Massafera","Brasileira",30,"Atriz, ex-BBB","1982-06-28"]
[null,null,"Zooey Deschanel",0.47445917129516602,null,null,"Jessica Alba",null,null,"Isabeli Fontana","Brasileira",29,"Modelo","1983-07-04"]
[null,null,"Deborah Secco",0.46298003196716309,null,null,"Jessica Gomes",null,null,"Isis Valverde","Brasileira",25,"Atriz","1987-02-17"]
[null,null,"Dani Bolina",0.45964080095291138,null,null,"Katrina Bowden",null,null,"Ivete Sangalo","Brasileira",40,"Cantora de axé","1972-05-27"]
[null,null,"Renata Fan",0.45797145366668701,null,null,"Kristen Stewart",null,null,"Jennifer Lawrence","Americana",22,"Atriz, interpreta Katniss Everdeen em \" Jogos Vorazes\"","1990-08-18"]
[null,null,"Aryane Steinkopf",0.43026113510131836,null,null,"Lea Michele",null,null,"Jessica Alba","Americana",31,"Atriz, interpreta a Mulher Invisível em \"O Quarteto Fantástico\"","1981-04-28"]
[null,null,"Selena Gomez",0.42845636606216431,null,null,"Mila Kunis",null,null,"Jessica Gomes","Australiana",27,"Modelo","1985-05-28"]
[null,null,"Claudia Leitte",0.40483415126800537,null,null,"Miranda Kerr",null,null,"Juju Salimeni","Brasileira",25,"Modelo, ex-Panicat","1986-09-24"]
[null,null,"Kate Upton",0.39047145843505859,null,null,"Olivia Munn",null,null,"Kate Beckinsale","Inglesa",39,"Atriz, interpreta Selene na série de filmes Anjos da Noite","1973-07-26"]
[null,null,"Bar Refaeli",0.39029145240783691,null,null,"Olivia Wilde",null,null,"Kate Middleton","Inglesa",30,"Duquesa de Cambridge, esposa do Principe William","1982-01-09"]
[null,null,"Sofia Vergara",0.37890255451202393,null,null,"Rihanna",null,null,"Kate Upton","Americana",20,"Modelo","1992-06-10"]
[null,null,"Rihanna",0.36499541997909546,null,null,"Selena Gomez",null,null,"Katrina Bowden","Americana",23,"Atriz, interpreta Cerie no seriado de TV \"30 Rock\"","1988-09-19"]
[null,null,"Candice Swanepoel",0.35347265005111694,null,null,"Zooey Deschanel",null,null,"Katy Perry","Americana",27,"Cantora","1984-10-25"]
[null,null,"Beyonce",0.33169442415237427,null,null,"Adriana Birolli",null,null,"Kristen Stewart","Americana",22,"Atriz, intepreta Bella Swan na saga Crespúsculo","1990-04-09"]
[null,null,"Paola Oliveira",0.28966504335403442,null,null,"Adriana D'Santana",null,null,"Lea Michele","Americana",25,"Atriz, interpreta Rachel Berry no seriado de TV \"Glee\"","1986-08-29"]
[null,null,"Paula Fernandes",0.26973158121109009,null,null,"Adriane Galisteu",null,null,"Maria Pinna","Brasileira",23,"Atriz de Malhação","1988-09-25"]
[null,null,"Kate Beckinsale",0.2613682746887207,null,null,"Alinne Moraes",null,null,"Megan Fox","Americana",26,"Atriz, interpretou Mikaela em \"Transformers\"","1986-05-16"]
[null,null,"Talula Pascoli",0.25726765394210815,null,null,"Aryane Steinkopf",null,null,"Mel Fronckowiak","Brasileira",24,"Atriz, interpretou Carla na versão brasileira do seriado \"Rebelde\"","1988-01-16"]
[null,null,"Amber Heard",0.24384516477584839,null,null,"Babi Rossi",null,null,"Mila Kunis","Ucraniana",29,"Atriz, interpretou Jackie no seriado de TV \"That '70s Show\"","1983-08-14"]
[null,null,"Isis Valverde",0.21036863327026367,null,null,"Bárbara Evans",null,null,"Miranda Kerr","Australiana",29,"Modelo","1983-04-20"]
[null,null,"Cleo Pires",0.20756113529205322,null,null,"Camila Pitanga",null,null,"Nicole Bahls","Brasileira",26,"Modelo, ex-Panicat","1985-11-15"]
[null,null,"Scarlett Johansson",0.18601351976394653,null,null,"Claudia Leitte",null,null,"Olivia Munn","Americana",32,"Atriz","1980-07-03"]
[null,null,"Camila Pitanga",0.15630221366882324,null,null,"Dani Bolina",null,null,"Olivia Wilde","Americana",28,"Atriz, interpretou Thirteen no seriado de TV \"House\"","1984-03-10"]
[null,null,"Katy Perry",0.15566307306289673,null,null,"Deborah Secco",null,null,"Paola Oliveira","Brasileira",30,"Atriz de novelas","1982-04-14"]
[null,null,"Isabeli Fontana",0.1282498836517334,null,null,"Gisele Bündchen",null,null,"Paula Fernandes","Brasileira",27,"Cantora sertaneja","1984-08-28"]
[null,null,"Ana Hickmann",0.10737532377243042,null,null,"Grazi Massafera",null,null,"Renata Fan","Brasileira",35,"Apresentadora de TV, Miss Brasil 99","1977-07-05"]
[null,null,"Mila Kunis",0.10545265674591064,null,null,"Ivete Sangalo",null,null,"Rihanna","Barbadiana (Barbados)",24,"Cantora","1988-02-20"]
[null,null,"Blake Lively",9.7973823547363281E-2,null,null,"Juju Salimeni",null,null,"Rosie Huntington-Whiteley","Inglesa",25,"Modelo e atriz, interpretou Carly em \"Transformers: o lado oculto da Lua\"","1987-04-18"]
[null,null,"Olivia Wilde",8.0714643001556396E-2,null,null,"Maria Pinna",null,null,"Sabrina Sato","Brasileira",31,"Apresentadora de TV, ex-BBB","1981-02-04"]
[null,null,"Anne Hathaway",7.3953330516815186E-2,null,null,"Nicole Bahls",null,null,"Sandy","Brasileira",29,"Cantora, filha do cantor Xororó","1983-01-28"]
[null,null,"Gisele Bündchen",6.0916244983673096E-2,null,null,"Paola Oliveira",null,null,"Scarlett Johansson","Americana",27,"Atriz e modelo, interpretou a Viúva Negra em \"Homem de Ferro 2\" e \"Os Vingadores\"","1984-11-22"]
[null,null,"Emma Watson",5.5593490600585938E-2,null,null,"Renata Fan",null,null,"Selena Gomez","Americana",20,"Atriz e cantora","1992-07-22"]
[null,null,"Bárbara Evans",2.2629201412200928E-2,null,null,"Sabrina Sato",null,null,"Sofia Vergara","Colombiana",40,"Atriz e modelo, interpreta Gloria Delgado-Pritchett no seriado de TV \"Modern Family\"","1972-07-10"]
[null,null,"Miranda Kerr",1.875835657119751E-2,null,null,"Sandy",null,null,"Talula Pascoli","Brasileira",31,"Ex-BBB","1981-07-28"]
[null,null,"Sabrina Sato",2.4121999740600586E-4,null,null,"Talula Pascoli",null,null,"Zooey Deschanel","Americana",32,"Atriz, interpretou Summer em \"500 dias com ela\"","1980-01-17"]

{"sheet":"Manutenção","index":4,"n_rows":69,"n_cols":3,"rows_kept":69,"cut":false,"hidden":true,"merged":[]}
["Candidata","Imagem"]
["Amber Heard",10,"Stbd"]
["Angelina Jolie",null,"Port"]
["Anne Hathaway",null,"LeftButton"]
["Bar Refaeli",null,"RightButton"]
["Bérénice Marlohe",null,"Amber Heard"]
["Beyonce",null,"Angelina Jolie"]
["Blake Lively",null,"Anne Hathaway"]
["Candice Swanepoel",null,"Bar Refaeli"]
["Daisy Lowe",null,"Bérénice Marlohe"]
["Emma Stone",null,"Beyonce"]
["Emma Watson",null,"Blake Lively"]
["Jennifer Lawrence",null,"Candice Swanepoel"]
["Jessica Alba",null,"Daisy Lowe"]
["Jessica Gomes",null,"Emma Stone"]
["Kate Beckinsale",null,"Emma Watson"]
["Kate Middleton",null,"Jennifer Lawrence"]
["Kate Upton",null,"Jessica Alba"]
["Katrina Bowden",null,"Jessica Gomes"]
["Katy Perry",null,"Kate Beckinsale"]
["Kristen Stewart",null,"Kate Middleton"]
["Lea Michele",null,"Kate Upton"]
["Megan Fox",null,"Katrina Bowden"]
["Mila Kunis",null,"Katy Perry"]
["Miranda Kerr",null,"Kristen Stewart"]
["Olivia Munn",null,"Lea Michele"]
["Olivia Wilde",null,"Megan Fox"]
["Rihanna",null,"Mila Kunis"]
["Rosie Huntington-Whiteley",null,"Miranda Kerr"]
["Scarlett Johansson",null,"Olivia Munn"]
["Selena Gomez",null,"Olivia Wilde"]
["Sofia Vergara",null,"Rihanna"]
["Zooey Deschanel",null,"Rosie Huntington-Whiteley"]
["Adriana Birolli",null,"Scarlett Johansson"]
["Adriana D'Santana",null,"Selena Gomez"]
["Adriana Lima",null,"Sofia Vergara"]
["Adriane Galisteu",null,"Zooey Deschanel"]
["Alessandra Ambrósio",null,"Adriana Birolli"]
["Alinne Moraes",null,"Adriana Lima1"]
["Ana Hickmann",null,"Adriana D'Santana"]
["Aryane Steinkopf",null,"Adriane Galisteu"]
["Babi Rossi",null,"Alessandra Ambrósio"]
["Babi Xavier",null,"Alinne Moraes"]
["Bárbara Evans",null,"Ana Hickmann"]
["Camila Pitanga",null,"Aryane Steinkopf"]
["Claudia Leitte",null,"Babi Rossi"]
["Cleo Pires",null,"Babi Xavier"]
["Dani Bolina",null,"Bárbara Evans"]
["Deborah Secco",null,"Camila Pitanga"]
["Ellen Roche",null,"Claudia Leitte"]
["Gisele Bündchen",null,"Cleo Pires"]
["Grazi Massafera",null,"Dani Bolina"]
["Isabeli Fontana",null,"Deborah Secco"]
["Isis Valverde",null,"Ellen Roche"]
["Ivete Sangalo",null,"Gisele Bündchen"]
["Juju Salimeni",null,"Grazi Massafera"]
["Maria Pinna",null,"Isabeli Fontana"]
["Mel Fronckowiak",null,"Isis Valverde"]
["Nicole Bahls",null,"Ivete Sangalo"]
["Paola Oliveira",null,"Juju Salimeni"]
["Paula Fernandes",null,"Maria Pinna"]
["Renata Fan",null,"Mel Fronckowiak"]
["Sabrina Sato",null,"Nicole Bahls"]
["Sandy",null,"Paola Oliveira"]
["Talula Pascoli",null,"Paula Fernandes"]
[null,null,"Renata Fan"]
[null,null,"Sabrina Sato"]
[null,null,"Sandy"]
[null,null,"Talula Pascoli"]